fUST/lending_fUST_20260204
["ID","MTS","AMOUNT","RATE_DAILY","PERIOD"]
[404466546,1770162928118,-152.0,0.000599,120]
[404466547,1770162928168,-162.04770473,0.0006,120]
[404466548,1770162928226,-82561.61436726,0.0006013,120]
[404466549,1770162928277,-456.43155174,0.00060273,120]
[404466550,1770162928426,-500.0,0.00060273,120]
[404466551,1770162928486,-500.0,0.00060273,120]
[404466552,1770162928544,-500.0,0.00060273,120]
[404466553,1770162928600,-500.0,0.00060273,120]
[404466554,1770162928654,-5842.7,0.00060273,120]
[404466555,1770162928711,-504.03,0.00060273,120]
[404466556,1770162928761,-500.0,0.00060273,120]
[404466557,1770162928811,-500.0,0.00060273,120]
[404466558,1770162928863,-200.0,0.00060273,120]
[404466559,1770162928915,-500.0,0.00060273,55]
[404466560,1770162928970,-500.0,0.00060273,120]
[404466561,1770162929021,-500.0,0.00060273,120]
[404466562,1770162929073,-194.05061496,0.00060273,120]
[404466563,1770162929124,-872.94,0.00060273,120]
[404466564,1770162929178,-500.0,0.00060273,120]
[404466565,1770162929230,-540.0,0.00060273,120]
[404466566,1770162929278,-150.0,0.00060273,120]
[404466567,1770162929327,-500.0,0.00060273,120]
[404466568,1770162929374,-500.0,0.00060273,120]
[404466569,1770162929422,-500.0,0.00060273,120]
[404466570,1770162929470,-500.0,0.00060273,120]
[404466571,1770162929517,-1615.55,0.00060273,30]
[404466572,1770162929566,-958.98,0.00060273,120]
[404466573,1770162929615,-500.0,0.00060273,120]
[404466574,1770162929664,-764.79,0.00060273,120]
[404466575,1770162929714,-500.0,0.00060273,120]
[404466576,1770162929765,-518.76546072,0.00060273,120]
[404466577,1770162929817,-163.80320263,0.00060273,120]
[404466578,1770162929866,-500.0,0.00060273,120]
[404466579,1770162929915,-500.0,0.00060273,120]
[404466580,1770162929963,-573.68043484,0.00060273,120]
[404466581,1770162930011,-500.0,0.00060273,120]
[404466582,1770162930060,-560.19,0.00060273,120]
[404466583,1770162930108,-1802.39,0.00060273,120]
[404466584,1770162930157,-192.49793463,0.00060273,120]
[404466585,1770162930208,-603.36,0.00060273,120]
[404466586,1770162930259,-1653.27,0.00060273,120]
[404466587,1770162930307,-156.92358252,0.00060273,120]
[404466588,1770162930354,-768.81,0.00060273,120]
[404466589,1770162930403,-578.52,0.00060273,120]
[404466590,1770162930454,-627.52,0.00060273,120]
[404466591,1770162930505,-844.72,0.00060273,120]
[404466592,1770162930559,-2000.0,0.00060273,120]
[404466593,1770162930607,-2000.0,0.00060273,120]
[404466594,1770162930658,-1939.58964499,0.00060273,120]
[404466595,1770162930709,-648.01,0.00060273,120]
[404466596,1770162930758,-500.0,0.00060273,120]
[404466597,1770162930809,-7002.19,0.00060273,120]
[404466598,1770162930860,-500.0,0.00060273,120]
[404466599,1770162930910,-524.29812403,0.00060273,120]
[404466600,1770162930959,-500.0,0.00060273,120]
[404466601,1770162931011,-500.0,0.00060273,120]
[404466602,1770162931059,-219.0502527,0.00060273,120]
[404466603,1770162931107,-500.0,0.00060273,120]
[404466604,1770162931155,-203.25412542,0.00060273,120]
[404466605,1770162931202,-16504.34,0.00060273,90]
[404466606,1770162931251,-1123.18,0.00060273,120]
[404466607,1770162931300,-489.60726262,0.00060273,120]
[404466608,1770162931350,-500.0,0.00060273,120]
[404466609,1770162931396,-2347.37,0.00060273,120]
[404466610,1770162931446,-487.0,0.00060273,120]
[404466611,1770162931495,-487.0,0.00060273,120]
[404466612,1770162931542,-487.0,0.00060273,120]
[404466613,1770162931591,-487.0,0.00060273,120]
[404466614,1770162931640,-487.0,0.00060273,120]
[404466615,1770162931688,-487.0,0.00060273,120]
[404466616,1770162931736,-487.0,0.00060273,120]
[404466617,1770162931783,-487.0,0.00060273,120]
[404466618,1770162931831,-487.0,0.00060273,120]
[404466619,1770162931881,-487.0,0.00060273,120]
[404466620,1770162931933,-487.0,0.00060273,120]
[404466621,1770162931984,-487.0,0.00060273,120]
[404466622,1770162932034,-487.0,0.00060273,120]
[404466623,1770162932084,-487.0,0.00060273,120]
[404466624,1770162932136,-487.0,0.00060273,120]
[404466625,1770162932188,-487.0,0.00060273,120]
[404466626,1770162932238,-487.0,0.00060273,120]
[404466627,1770162932289,-487.0,0.00060273,120]
[404466628,1770162932340,-487.0,0.00060273,120]
[404466629,1770162932389,-487.0,0.00060273,120]
[404466630,1770162932440,-487.0,0.00060273,120]
[404466631,1770162932491,-487.0,0.00060273,120]
[404466632,1770162932542,-487.0,0.00060273,120]
[404466633,1770162932592,-487.0,0.00060273,120]
[404466634,1770162932640,-487.0,0.00060273,120]
[404466635,1770162932691,-487.0,0.00060273,120]
[404466636,1770162932741,-487.0,0.00060273,120]
[404466637,1770162932897,-487.0,0.00060273,120]
[404466638,1770162932951,-487.0,0.00060273,120]
[404466639,1770162933001,-487.0,0.00060273,120]
[404466640,1770162933055,-487.0,0.00060273,120]
[404466641,1770162933108,-487.0,0.00060273,120]
[404466642,1770162933160,-487.0,0.00060273,120]
[404466643,1770162933214,-487.0,0.00060273,120]
[404466644,1770162933268,-487.0,0.00060273,120]
[404466645,1770162933319,-487.0,0.00060273,120]
[404466646,1770162933371,-487.0,0.00060273,120]
[404466647,1770162933421,-487.0,0.00060273,120]
[404466648,1770162933473,-848.49,0.00060273,120]
[404466649,1770162933590,500.0,0.00054794,120]
[404466650,1770162933673,500.0,0.00054794,120]
[404466651,1770162933745,500.0,0.00054794,120]
[404466652,1770162933810,500.0,0.00054794,120]
[404466653,1770162933871,500.0,0.00054794,120]
[404466654,1770162933951,500.0,0.00054794,120]
[404466655,1770162934027,500.0,0.00054794,120]
[404466656,1770162934089,500.0,0.00054794,120]
[404466657,1770163029218,360.16646673,0.00039933,120]
[404466658,1770163029606,360.16646673,0.00039933,120]
[404466659,1770163029957,360.16646673,0.00039933,120]
[404466660,1770163030381,360.16646673,0.00039933,120]
[404466661,1770163031129,360.16646673,0.00039933,120]
[404466662,1770163031506,360.16646673,0.00039933,120]
[404466663,1770163031902,360.16646673,0.00039933,120]
[404466664,1770163032342,360.16646673,0.00039933,120]
[404466665,1770163032773,360.16646673,0.00039933,120]
[404466666,1770163033154,360.16646673,0.00039933,120]
[404466667,1770163033511,360.16646673,0.00039933,120]
[404466668,1770163033864,360.16646673,0.00039933,120]
[404466669,1770163034216,360.16646673,0.00039933,120]
[404466670,1770163034612,360.16646673,0.00039933,120]
[404466671,1770163034960,360.16646673,0.00039933,120]
[404466672,1770163344010,3073.88477384,0.00039947,20]
[404466673,1770163355132,7611.85,0.00013715,2]
[404466674,1770163370824,2388.16,0.00013715,2]
[404466675,1770163370848,5222.84,0.00013715,2]
[404466676,1770163447654,-370.0,0.0002,5]
[404466677,1770163714723,309.97825524,0.0001371,2]
[404466678,1770163746140,-300.0,0.00032269,2]
[404466679,1770163746163,-14255.15053706,0.0003227,2]
[404466680,1770163746184,-405.22421368,0.00037451,120]
[404466681,1770163746204,-1000.0,0.00037551,30]
[404466682,1770163746223,-837.0,0.00039933,20]
[404466683,1770163746244,-154.076,0.00048301,83]
[404466684,1770163746265,-1041.66666667,0.00048333,2]
[404466685,1770163746285,-740.91124423,0.00048333,2]
[404466686,1770163746306,-14255.15053706,0.00048399,2]
[404466687,1770163746326,-366.49125474,0.00048757,2]
[404466688,1770163749079,3206.85127205,0.00032273,2]
[404466689,1770163768095,-11762.13072201,0.00032273,2]
[404466690,1770163768119,-14968.98199406,0.00048402,2]
[404466691,1770163768139,-243.16,0.00049085,2]
[404466692,1770163768160,-152.0,0.0005,120]
[404466693,1770163768183,-152.0,0.000516,120]
[404466696,1770163802237,152.2,0.000301,2]
[404466697,1770163802450,152.2,0.000332,2]
[404466738,1770163831846,-6619.83,0.00040944,2]
[404466739,1770163831857,-152.0,0.000532,120]
[404466740,1770163831867,-15000.0,0.0005325,14]
[404466741,1770163831876,-318.7949735,0.00053367,2]
[404466743,1770163831886,-500.0,0.00054189,120]
[404466745,1770163831895,-1948.6155541,0.000542,2]
[404466747,1770163831904,-162.78297258,0.000542,120]
[404466749,1770163831913,-531.79,0.00054236,10]
[404466751,1770163831922,-443.15,0.00054236,10]
[404466753,1770163831931,-142382.13283246,0.00054246,2]
[404466764,1770163838163,-369.3,0.00054236,10]
[404466765,1770163838173,-5795.23943582,0.00054246,2]
[404466766,1770163838318,-28958.67865561,0.00054246,2]
[404466826,1770163840185,-756250.76551829,0.00054246,2]
[404466828,1770163840197,-5500.023309,0.00054246,2]
[404466830,1770163840208,-1833.34169242,0.00054246,2]
[404467115,1770163845970,-307.75,0.00054236,10]
[404467116,1770163845980,-48341.83036633,0.00054246,2]
[404467117,1770163846135,-1696.98097621,0.00054246,2]
[404467118,1770163846235,-1480.49022964,0.00054246,2]
[404467119,1770163875971,150.0,0.00021918,2]
[404467120,1770163880280,395.95322756,0.00013273,2]
[404467121,1770163890460,179.0,0.00051272,120]
[404467122,1770163900049,3206.8866827,0.00037415,2]
[404467123,1770163913644,6625.42064063,0.00040213,2]
[404467124,1770163925159,240.23682565,0.00039944,120]
[404467125,1770164108106,535.03302048,0.00013273,2]
[404467129,1770164322481,460.33,0.00030137,120]
[404467130,1770164527691,-150.0,0.00021918,2]
[404467131,1770164527718,-202.42722167,0.00022466,2]
[404467133,1770164534794,-97.57277833,0.00022466,2]
[404467134,1770164534817,-402.42722167,0.00023014,2]
[404467135,1770164537051,-47.57277833,0.00023014,2]
[404467136,1770164537072,-452.42722167,0.00023562,2]
[404467137,1770164542558,-289.20498114,0.00023562,2]
[404467138,1770164548972,59.0356266,0.00030655,2]
[404467143,1770164847130,-540.63280919,0.00024456,2]
[404467144,1770164847155,-175.22155243,0.00024703,2]
[404467145,1770164955134,-374.43422618,0.0002079,2]
[404467146,1770164969075,-391.30859479,0.0002079,2]
[404467147,1770164969096,-300.0,0.00020999,2]
[404467148,1770164969115,-16321.22200626,0.00021,2]
[404467149,1770164969136,-14033.03958138,0.00025205,2]
[404467150,1770164969157,-1449.0,0.00032272,3]
[404467151,1770164969178,-324.17937096,0.000332,117]
[404467152,1770164969197,-2984.81458654,0.00036,2]
[404467153,1770164969217,-5434.645629,0.00037358,7]
[404467154,1770164969237,-2080.23807093,0.00039875,2]
[404467155,1770164969259,-207.50287306,0.00039875,12]
[404467156,1770164969280,-737.7,0.00039965,10]
[404467157,1770164969300,-4097.70071307,0.00040213,2]
[404467158,1770164969319,-3081.503634,0.00041089,2]
[404467159,1770164969341,-14033.03958138,0.00041577,2]
[404467160,1770164969360,-3578.8388737,0.00041746,2]
[404467161,1770164969380,-154.076,0.00041746,62]
[404467162,1770164969399,-10000.01,0.00042419,2]
[404467163,1770164969419,-3081.503634,0.00042819,2]
[404467164,1770164969440,-3081.503634,0.00044549,2]
[404467165,1770164969460,-3081.503634,0.00046279,2]
[404467166,1770164969479,-6684.84,0.00047708,11]
[404467167,1770164969499,-3081.503634,0.00048008,2]
[404467168,1770164969518,-131.92054893,0.00048821,7]
[404467169,1770164970159,-92.49084943,0.00048821,7]
[404467170,1770164970181,-177.0,0.00048821,120]
[404467171,1770164970205,-625.70498662,0.000491,2]
[404467172,1770164970225,-740.91124423,0.000491,2]
[404467173,1770164970246,-1322.36,0.00049438,11]
[404467174,1770164970269,-3081.503634,0.00049738,2]
[404467175,1770164970290,-224.41139836,0.0005,120]
[404467176,1770164970311,-464.62347668,0.0005,120]
[404467177,1770164970330,-168.22831454,0.0005,2]
[404467178,1770164970351,-200.0,0.00050327,120]
[404467179,1770164970370,-358.8,0.00050972,11]
[404467180,1770164970390,-718.0,0.00051272,2]
[404467181,1770164970410,-179.0,0.00051272,120]
[404467182,1770164973963,614.75,0.00039965,10]
[404467183,1770164985737,512.29,0.00039965,10]
[404467184,1770164996088,426.91,0.00039965,10]
[404467185,1770165007558,355.76,0.00039965,10]
[404467186,1770165019193,296.46,0.00039965,10]
[404467187,1770165030077,589.72,0.0004,30]
[404467188,1770165030700,247.05,0.00039965,10]
[404467219,1770165031862,-62359.11105346,0.00039975,2]
[404467220,1770165031872,-514.87431278,0.00039975,2]
[404467221,1770165031882,-7845.21977356,0.00039975,2]
[404467222,1770165031892,-749.85190849,0.00039975,2]
[404467223,1770165031901,-394577.01982728,0.00039975,2]
[404467224,1770165031914,-838.73973918,0.00039975,2]
[404467239,1770165037940,-40188.47496305,0.00039975,2]
[404467267,1770165040245,-1281.46958012,0.00039975,2]
[404467761,1770165045186,-12525.14614399,0.00039975,2]
[404467763,1770165045198,-513.17087944,0.00039975,2]
[404467873,1770165046224,-8497.47573178,0.00039975,2]
[404467876,1770165046237,-3378.31444865,0.00039975,2]
[404467879,1770165046249,-7475.12859317,0.00039975,2]
[404467936,1770165100076,740.91124423,0.00039975,2]
[404467937,1770165111378,378.923,0.00051769,2]
[404467938,1770165111937,179.0,0.00051769,120]
[404467946,1770165598854,10000.0,0.00013695,2]
[404467947,1770165686648,0.01,0.00013695,2]
[404467948,1770165686671,9999.99,0.00013695,2]
[404467953,1770165697595,0.02,0.00013695,2]
[404467954,1770165697617,9999.98,0.00013695,2]
[404467956,1770165706511,0.03,0.00013695,2]
[404467957,1770165706535,9999.97,0.00013695,2]
[404467958,1770165726887,0.04,0.00013273,2]
[404467959,1770165726911,499.96,0.00013273,2]
[404467960,1770165740552,9500.05,0.00013695,2]
[404467961,1770165740576,499.95,0.00013695,2]
[404467962,1770165786842,500.0,0.00013273,2]
[404467963,1770165788816,500.0,0.00013273,2]
[404467964,1770165800273,646.3760695,0.00013273,2]
[404467965,1770165847483,300.0,0.00013673,2]
[404467966,1770165847949,500.0,0.00013273,2]
[404467967,1770165901365,5000.0,0.00013699,2]
[404467968,1770165901467,300.0,0.00013698,2]
[404467969,1770165904042,537.781784,0.00013273,2]
[404467970,1770165904130,162.61154024,0.00013273,2]
[404467971,1770165904164,500.0,0.00013273,2]
[404467972,1770165904228,500.0,0.00013273,2]
[404467973,1770165907372,424.19855448,0.00013273,2]
[404467974,1770165909117,129.04205178,0.00013273,2]
[404467975,1770165909149,370.95794822,0.00013273,2]
[404467976,1770165909468,3187.46551049,0.00013699,2]
[404467977,1770165912073,500.0,0.00013273,2]
[404467978,1770165923991,500.0,0.00013273,2]
[404467979,1770165924518,879.58594994,0.00013699,2]
[404467980,1770165967952,501.7636643,0.00013273,2]
[404467981,1770165970459,300.0,0.00013673,2]
[404467982,1770165970524,500.0,0.00013273,2]
[404467983,1770165973590,500.0,0.00013273,2]
[404467986,1770166001768,-500.0,0.00013699,2]
[404467987,1770166001789,-200.0,0.00013699,2]
[404467988,1770166027354,500.0,0.00013273,2]
[404467989,1770166029129,-300.0,0.00013699,2]
[404467990,1770166029156,-500.0,0.00013699,2]
[404467991,1770166029182,-500.0,0.00013699,2]
[404467992,1770166029206,-500.75464569,0.00013699,2]
[404467993,1770166029233,-500.0,0.00013699,2]
[404467994,1770166029262,-500.0,0.00013699,2]
[404467995,1770166029300,-533.11951777,0.00013699,2]
[404467996,1770166029331,-501.06198753,0.00013699,2]
[404467997,1770166029359,-500.0,0.00013699,2]
[404467998,1770166029386,-240.85099911,0.00013699,2]
[404467999,1770166029414,-1000.0,0.00013821,2]
[404468000,1770166029439,-802.88258466,0.00013821,2]
[404468001,1770166029461,-1000.0,0.00013821,2]
[404468002,1770166029484,-1000.0,0.00013821,2]
[404468003,1770166029510,-1000.0,0.00013821,2]
[404468004,1770166029537,-7012.83105714,0.00013915,2]
[404468005,1770166030091,-7009.74193109,0.00013915,2]
[404468006,1770166030118,-504.1551729,0.00014221,2]
[404468007,1770166030148,-165.84355531,0.00014247,2]
[404468008,1770166030174,-1002.44285859,0.00014247,2]
[404468009,1770166030197,-500.0,0.00014247,2]
[404468010,1770166030223,-500.0,0.00014368,2]
[404468011,1770166030250,-201.06861155,0.00024878,5]
[404468012,1770166030278,-177.0,0.000266,5]
[404468013,1770166030300,-177.0,0.000269,20]
[404468014,1770166030326,-14022.57298823,0.00030679,2]
[404468015,1770166030350,-13400.6116785,0.00031617,2]
[404468016,1770166030371,-740.91124423,0.00031743,2]
[404468017,1770166030395,-340.38833952,0.000332,117]
[404468018,1770166030424,-500.0,0.00037357,120]
[404468019,1770166030448,-175.0,0.000374,120]
[404468020,1770166030477,-3138.7758811,0.00039486,2]
[404468021,1770166030502,-163.047,0.00039486,55]
[404468022,1770166030524,-177.0,0.000395,65]
[404468023,1770166030548,-500.0,0.00039974,120]
[404468024,1770166030571,-453.42097,0.00039974,120]
[404468025,1770166030593,-177.0,0.00040223,120]
[404468026,1770166030618,-14022.57298823,0.00047444,2]
[404468027,1770166030639,-3601.58,0.00048102,12]
[404468028,1770166030662,-1103.69,0.00049,120]
[404468029,1770166030685,-170.9567276,0.00049,120]
[404468030,1770166030709,-152.59671412,0.00049694,2]
[404468031,1770166030731,-174.52300001,0.000497,7]
[404468032,1770166030755,-154.0,0.0005,120]
[404468033,1770166030777,-151.0,0.00050136,30]
[404468034,1770166030800,-156.2704493,0.00050248,2]
[404468035,1770166030827,-783.37,0.0005032,10]
[404468036,1770166030851,-652.81,0.0005032,10]
[404468037,1770166030872,-17000.0,0.0005033,14]
[404468038,1770166030896,-151.0,0.00050821,32]
[404468039,1770166030921,-151.0,0.00051506,34]
[404468040,1770166030947,-154.0,0.000517,120]
[404468041,1770166030969,-151.0,0.00052191,36]
[404468042,1770166030989,-151.0,0.00052876,38]
[404468043,1770166031009,-1371.0,0.00052949,120]
[404468044,1770166031183,-718.0,0.00052949,2]
[404468045,1770166031210,-179.0,0.00052949,120]
[404468046,1770166031233,-155.0,0.00053,120]
[404468047,1770166031254,-154.0,0.000534,120]
[404468048,1770166031274,-151.0,0.00053561,40]
[404468049,1770166031296,-168.0,0.00053679,2]
[404468050,1770166031317,-15021.50081227,0.00054246,2]
[404468051,1770166091507,300.0,0.00013673,2]
[404468052,1770166094218,500.0,0.00013273,2]
[404468053,1770166154098,-203.31394556,0.00013699,2]
[404468057,1770166163150,-46.68605444,0.00013699,2]
[404468058,1770166163169,-502.31785665,0.00013699,2]
[404468059,1770166163190,-500.0,0.00013699,2]
[404468060,1770166163212,-494.14013228,0.00013821,2]
[404468061,1770166163232,-201.68176131,0.00014247,2]
[404468062,1770166163255,-11702.45127814,0.00014247,2]
[404468063,1770166163282,-963.93204328,0.00014247,2]
[404468064,1770166163301,-740.91124423,0.00026379,2]
[404468065,1770166163321,-1000.0,0.00027596,30]
[404468066,1770166163341,-12666.38332142,0.00030997,2]
[404468067,1770166163360,-500.0,0.00039967,31]
[404468068,1770166163381,-300.0,0.00039967,5]
[404468069,1770166163402,-12666.38332142,0.00047747,2]
[404468070,1770166202786,152.26,0.000301,2]
[404468071,1770166203108,152.26,0.000316,2]
[404468072,1770166203396,152.26,0.000332,2]
[404468073,1770166203949,2000.0,0.00039968,20]
[404468074,1770166206774,500.0,0.00013699,2]
[404468075,1770166206827,225.49381677,0.00014247,2]
[404468076,1770166213561,1888.0,0.0005082,32]
[404468095,1770166232036,-1542.59117141,0.00039968,2]
[404468618,1770166246484,-1821.27786577,0.00039968,2]
[404468619,1770166250395,1283.01135117,0.00024953,2]
[404468620,1770166256846,740.91124423,0.00039968,2]
[404468621,1770166265842,500.0,0.00013699,2]
[404468622,1770166266246,500.0,0.00013273,2]
[404468623,1770166266301,1000.0,0.00013821,2]
[404468624,1770166266355,1533.64037568,0.00014368,2]
[404468625,1770166267998,500.0,0.00013273,2]
[404468626,1770166268047,500.0,0.00013821,2]
[404468627,1770166273935,500.0,0.00013699,2]
[404468628,1770166273982,1000.0,0.00014247,2]
[404468629,1770166274036,576.36389975,0.00014795,2]
[404468630,1770166303649,163.047,0.00037588,49]
[404468631,1770166323201,588.67708868,0.00013699,2]
[404468632,1770166323444,500.0,0.00013699,2]
[404468633,1770166389181,248.36876617,0.00039968,120]
[404468634,1770166389556,248.36876617,0.00039968,120]
[404468635,1770166389968,248.36876617,0.00039968,120]
[404468639,1770166863965,500.0,0.00013273,2]
[404468640,1770166863992,500.0,0.00013273,2]
[404468641,1770166933801,419.96511608,0.00013699,2]
[404468643,1770167108254,9185.0,0.00039966,30]
[404468644,1770167144123,-253.8681669,0.00013699,2]
[404468645,1770167195506,40.27181097,0.00013699,2]
[404468646,1770167195528,334.16241521,0.00013699,2]
[404468647,1770167203171,-246.1318331,0.00013699,2]
[404468648,1770167203199,-255.37586411,0.00013699,2]
[404468649,1770167203226,-192.71592649,0.00013699,2]
[404468650,1770167203253,-572.53077608,0.00013699,2]
[404468651,1770167203422,-1200.0,0.0001382,2]
[404468652,1770167227905,212.27337714,0.00013699,2]
[404468653,1770167239071,300.0,0.00013699,2]
[404468654,1770167241249,-598.55870767,0.00013821,2]
[404468655,1770167241268,-876.75179994,0.00013821,2]
[404468656,1770167241289,-300.0,0.00013914,2]
[404468657,1770167241310,-791.80783039,0.00013915,2]
[404468658,1770167242899,361.16571938,0.00013273,2]
[404468659,1770167286616,530.90744841,0.00013699,2]
[404468660,1770167290012,218.68282216,0.00013273,2]
[404468661,1770167291912,300.0,0.00013699,2]
[404468662,1770167292421,494.14013228,0.00013273,2]
[404468663,1770167293249,152.56811827,0.00013273,2]
[404468664,1770167350005,488.01390527,0.00013699,2]
[404468665,1770167354593,389.3901587,0.00013273,2]
[404468666,1770167357137,200.0,0.00013699,2]
[404468667,1770167360269,500.0,0.00013273,2]
[404468668,1770167360330,638.83428062,0.00013821,2]
[404468669,1770167362084,-300.0,0.000164,2]
[404468670,1770167362103,-3132.35501675,0.00016403,2]
[404468671,1770167362121,-431.10858888,0.00022713,2]
[404468672,1770167362142,-500.0,0.00022713,2]
[404468673,1770167362162,-500.0,0.00022713,2]
[404468674,1770167362183,-500.0,0.00022713,2]
[404468675,1770167362202,-520.78439888,0.00022713,2]
[404468676,1770167362220,-500.0,0.00022713,2]
[404468677,1770167362239,-500.0,0.00022713,2]
[404468678,1770167362259,-500.0,0.00022713,2]
[404468679,1770167362278,-500.0,0.00022713,2]
[404468680,1770167362298,-500.0,0.00022713,2]
[404468681,1770167362317,-500.0,0.00022713,2]
[404468682,1770167362336,-170.7856914,0.00022713,2]
[404468683,1770167362355,-444.43005272,0.00022713,2]
[404468684,1770167362387,-500.0,0.00022713,2]
[404468685,1770167362409,-500.0,0.00022713,2]
[404468686,1770167362431,-500.0,0.00022713,2]
[404468687,1770167362452,-500.0,0.00022713,2]
[404468688,1770167362473,-525.0,0.00022713,2]
[404468689,1770167362494,-166.23359899,0.00022713,2]
[404468690,1770167362515,-475.83973751,0.00022713,2]
[404468691,1770167362536,-500.0,0.00022713,2]
[404468692,1770167362555,-18868.8913433,0.00022716,2]
[404468693,1770167362574,-1041.66666667,0.00026385,2]
[404468694,1770167362597,-492.8522721,0.00026411,2]
[404468695,1770167362620,-740.91124423,0.0002681,2]
[404468696,1770167362642,-1011.076403,0.00032883,2]
[404468697,1770167362664,-272.3106716,0.000332,117]
[404468698,1770167362683,-1001.62572558,0.000345,2]
[404468699,1770167367092,-160.0,0.00045496,3]
[404468700,1770167367115,-238.01426647,0.00045496,120]
[404468701,1770167367134,-160.0,0.00046835,4]
[404468702,1770167367154,-160.0,0.00048174,5]
[404468703,1770167367173,-1011.076403,0.00049325,2]
[404468704,1770167367194,-1000.0,0.000495,2]
[404468705,1770167367214,-160.0,0.00049513,6]
[404468706,1770167367234,-563.92,0.0004999,10]
[404468707,1770167367253,-469.93,0.0004999,10]
[404468708,1770167367273,-391.61,0.0004999,10]
[404468709,1770167367297,-160.0,0.0005,120]
[404468710,1770167367316,-247425.85759148,0.0005,30]
[404468711,1770167384930,2893.37965796,0.00032273,2]
[404468712,1770167414421,200.0,0.00013699,2]
[404468736,1770167432085,-1283.01135117,0.00032273,2]
[404469168,1770167444661,-263.88125358,0.00032273,2]
[404469249,1770167446456,-7670.12998542,0.00032273,2]
[404469250,1770167446466,-225.0,0.00039965,31]
[404469251,1770167446475,-330.64885972,0.00039965,7]
[404469252,1770167446485,-185.13706656,0.00039965,31]
[404469253,1770167446494,-5439.0029714,0.00039966,2]
[404469254,1770167446615,-1816.30766532,0.00039966,2]
[404469255,1770167446626,-200.12664579,0.00039966,2]
[404469256,1770167446636,-389.37313301,0.00039966,2]
[404469257,1770167446645,-203.35073635,0.00039966,2]
[404469258,1770167446655,-3179.57331281,0.00039966,2]
[404469259,1770167446663,-1495.07664156,0.00039966,2]
[404469260,1770167446675,-22650.0,0.00039966,2]
[404469263,1770167598271,500.0,0.00013273,2]
[404469264,1770167598329,898.61740645,0.00013821,2]
[404469272,1770168063972,500.0,0.00013699,2]
[404469273,1770168064157,502.31785665,0.00013699,2]
[404469274,1770168081514,5000.0,0.00014,2]
[404469275,1770168103022,483.02742215,0.00014,2]
[404469276,1770168111133,2563.53068819,0.00014,2]
[404469277,1770168247431,348.24060774,0.00014,2]
[404469281,1770168370870,-585.85676131,0.00014247,2]
[404469282,1770168417718,3161.03,0.00039973,120]
[404469283,1770168430124,-150.0,0.00016573,2]
[404469284,1770168430144,-177.0,0.00018573,2]
[404469285,1770168430166,-175.0,0.00018899,2]
[404469286,1770168430187,-204.0,0.00020573,2]
[404469287,1770168430208,-19.31277475,0.00022573,2]
[404469288,1770168454080,-211.68722525,0.00022573,2]
[404469289,1770168454104,-258.0,0.00024573,2]
[404469290,1770168454125,-170.499589,0.00024738,2]
[404469291,1770168454147,-170.499589,0.00025603,2]
[404469292,1770168454169,-285.0,0.00026573,2]
[404469293,1770168454203,-300.0,0.00026574,2]
[404469294,1770168454228,-3549.51450191,0.00026575,2]
[404469295,1770168454260,-270.0,0.00026575,2]
[404469296,1770168489751,1930.78924368,0.0001,2]
[404469299,1770168498016,289.75792615,0.0001,2]